[Event "Niedersachsen-ch B 2024"]
[Site "Verden Aller"]
[Date "2024.01.06"]
[Round "5.6"]
[White "Junge, Julia Marie"]
[Black "Silber, Stefanie"]
[Result "0-1"]
[ECO "B12"]
[WhiteElo "1401"]
[BlackElo "1581"]
[Annotator "NA RC"]
[PlyCount "132"]
[EventDate "2024.01.01"]
[EventType "swiss"]
[EventCountry "GER"]
[SourceTitle "playchess.com"]
[Source "ChessBase"]
[SourceQuality "1"]
[TimeControl "40/5400+30:1800+30"]

1. e4 {[%emt 0:00:02]} c6 {[%emt 0:09:35]} 2. d4 {[%emt 0:00:45]} d5 {[%emt 0:00:06]} 3. Bd3 {[%emt 0:01:38]} dxe4 {[%emt 0:06:36]} 4. Bxe4 {[%emt 0:00:29]} Nf6 {[%emt 0:00:06]} 5. f3 {[%emt 0:01:37]} e5 {[%emt 0:16:54]} 6. dxe5 {[%emt 0:01:37]} Qxd1+ {[%emt 0:04:58]} 7. Kxd1 {[%emt 0:01:43]} Nxe4 {[%emt 0:00:06]} 8. fxe4 {[%emt 0:00:07]} Bg4+ {[%emt 0:00:09]} 9. Nf3 {[%emt 0:00:27]} Nd7 {[%emt 0:00:30]} 10. Bf4 {[%emt 0:00:37]} Nc5 {[%emt 0:05:07]} 11. Nbd2 {[%emt 0:01:23]} O-O-O {[%emt 0:01:12]} 12. Re1 {[%emt 0:01:52]} Be7 {[%emt 0:04:05]} 13. Kc1 {[%emt 0:01:07]} h6 {[%emt 0:02:05]} 14. h3 {[%emt 0:00:26]} Bh5 {[%emt 0:01:54]} 15. Nc4 {[%emt 0:01:16]} g5 {[%emt 0:04:41]} 16. Be3 {[%emt 0:01:36]} b6 {[%emt 0:03:55]} 17. b3 {[%emt 0:03:10]} Bg6 {[%emt 0:01:18]} 18. Nfd2 {[%emt 0:01:22]} Kc7 {[%emt 0:05:14]} 19. Bf2 {[%emt 0:02:04]} h5 {[%emt 0:07:34]} 20. a4 {[%emt 0:01:16]} Kb7 {[%emt 0:14:56]} 21. b4 {[%emt 0:00:19]} Ne6 {[%emt 0:00:24]} 22. a5 {[%emt 0:02:44]} b5 {[%emt 0:03:30]} 23. a6+ {[%emt 0:02:51]} Ka8 {[%emt 0:01:42]} 24. Na5 {[%emt 0:01:54]} Bxb4 {[%emt 0:00:16]} 25. Rd1 {[%emt 0:01:04]} Bxd2+ {[%emt 0:00:59]} 26. Rxd2 {[%emt 0:00:06]} Rxd2 {[%emt 0:00:08]} 27. Kxd2 {[%emt 0:00:15]} Bxe4 {[%emt 0:00:10]} 28. g3 {[%emt 0:00:36]} Rd8+ {[%emt 0:00:32]} 29. Ke3 {[%emt 0:00:31]} Bxc2 {[%emt 0:01:45]} 30. Nxc6 {[%emt 0:00:47]} Rd3+ {[%emt 0:00:11]} 31. Ke2 {[%emt 0:00:20]} Rd7 {[%emt 0:01:31]} 32. Rc1 {[%emt 0:00:15]} Bd3+ {[%emt 0:00:29]} 33. Ke3 {[%emt 0:00:27]} Bc4 {[%emt 0:00:22]} 34. Nb4 {[%emt 0:02:35]} Nc5 {[%emt 0:01:12]} 35. Kf3 {[%emt 0:00:41]} Ne6 {[%emt 0:02:21]} 36. Ke4 {[%emt 0:01:55]} h4 {[%emt 0:01:19]} 37. gxh4 {[%emt 0:00:30]} gxh4 {[%emt 0:00:12]} 38. Kf5 {[%emt 0:00:49]} Rd8 {[%emt 0:00:53]} 39. Bxh4 {[%emt 0:01:36]} Rd4 {[%emt 0:00:28]} 40. Bg5 {[%emt 0:01:08]} Nxg5 {[%emt 0:00:31]} 41. Kxg5 {[%emt 0:30:12]} Be6 {[%emt 0:03:18]} 42. Nc6 {[%emt 0:00:00]} Ra4 {[%emt 0:09:20]} 43. h4 {[%emt 0:00:00]} Rxa6 {[%emt 0:01:06]} 44. h5 {[%emt 0:00:00]} Ra3 {[%emt 0:07:12]} 45. Nd8 {[%emt 0:00:00]} Rg3+ {[%emt 0:00:35]} 46. Kf6 {[%emt 0:00:00]} Rh3 {[%emt 0:02:02]} 47. Nxe6 {[%emt 0:00:00]} fxe6 {[%emt 0:00:06]} 48. Kxe6 {[%emt 0:00:00]} Rxh5 {[%emt 0:00:10]} 49. Kd6 {[%emt 0:00:00]} Kb7 {[%emt 0:02:12]} 50. e6 {[%emt 0:00:00]} Rh2 {[%emt 0:00:47]} 51. Kd7 {[%emt 0:00:00]} Rd2+ {[%emt 0:00:12]} 52. Ke8 {[%emt 0:00:00]} b4 {[%emt 0:00:56]} 53. e7 {[%emt 0:00:00]} a5 {[%emt 0:02:39]} 54. Rf1 {[%emt 0:00:00]} Kc6 {[%emt 0:04:10]} 55. Kf8 {[%emt 0:00:00]} Re2 {[%emt 0:00:46]} 56. e8=Q+ {[%emt 1:12:21]} Rxe8+ {[%emt 0:00:06]} 57. Kxe8 {[%emt 0:00:00]} Kb5 {[%emt 0:00:07]} 58. Kd7 {[%emt 0:00:00]} b3 {[%emt 0:00:31]} 59. Kd6 {[%emt 0:00:00]} a4 {[%emt 0:00:32]} 60. Kd5 {[%emt 0:00:00]} Kb4 {[%emt 0:00:24]} 61. Kd4 {[%emt 0:00:00]} a3 {[%emt 0:00:24]} 62. Kd3 {[%emt 0:00:00]} a2 {[%emt 0:00:34]} 63. Rf4+ {[%emt 0:00:00]} Ka3 {[%emt 0:00:28]} 64. Rf1 {[%emt 0:00:00]} b2 {[%emt 0:00:52]} 65. Kc2 {[%emt 0:00:00]} a1=Q {[%emt 0:03:35]} 66. Rf3+ {[%emt 0:00:00]} Ka2 {[%emt 0:00:00]} 0-1

[Event "Niedersachsen-ch B 2024"]
[Site "Verden Aller"]
[Date "2024.01.06"]
[Round "5.9"]
[White "Kewe, Stefan"]
[Black "Nguyen, Laurentius"]
[Result "1-0"]
[ECO "E62"]
[WhiteElo "1737"]
[BlackElo "1546"]
[Annotator "NA RC"]
[PlyCount "111"]
[EventDate "2024.01.01"]
[EventType "swiss"]
[EventCountry "GER"]
[SourceTitle "playchess.com"]
[Source "ChessBase"]
[SourceQuality "1"]
[TimeControl "40/5400+30:1800+30"]

1. d4 {[%emt 0:00:04]} Nf6 {[%emt 0:00:03]} 2. Nf3 {[%emt 0:00:10]} g6 {[%emt 0:00:41]} 3. g3 {[%emt 0:00:08]} Bg7 {[%emt 0:00:09]} 4. Bg2 {[%emt 0:00:07]} O-O {[%emt 0:00:07]} 5. O-O {[%emt 0:00:09]} d6 {[%emt 0:00:26]} 6. c4 {[%emt 0:00:08]} Nc6 {[%emt 0:02:13]} 7. Nc3 {[%emt 0:00:49]} e5 {[%emt 0:00:15]} 8. d5 {[%emt 0:05:17]} Ne7 {[%emt 0:10:49]} 9. h3 {[%emt 0:02:24]} Ne8 {[%emt 0:02:00]} 10. e4 {[%emt 0:01:31]} f5 {[%emt 0:00:59]} 11. Be3 {[%emt 0:03:09]} h6 {[%emt 0:10:27]} 12. Nh2 {[%emt 0:06:35]} Nf6 {[%emt 0:03:50]} 13. Qd2 {[%emt 0:03:25]} Kh7 {[%emt 0:02:54]} 14. Rac1 {[%emt 0:02:54]} g5 {[%emt 0:09:54]} 15. f4 {[%emt 0:03:06]} Nh5 {[%emt 0:23:30]} 16. fxg5 {[%emt 0:04:44]} Nxg3 {[%emt 0:01:54]} 17. Rf3 {[%emt 0:01:41]} f4 {[%emt 0:00:24]} 18. Bf2 {[%emt 0:01:19]} Nh5 {[%emt 0:08:01]} 19. gxh6 {[%emt 0:01:25]} Bxh6 {[%emt 0:03:36]} 20. Bh4 {[%emt 0:03:44]} Rg8 {[%emt 0:01:41]} 21. Qf2 {[%emt 0:06:57]} Ng3 {[%emt 0:03:13]} 22. Rc2 {[%emt 0:03:02]} Bxh3 {[%emt 0:07:39]} 23. Bxg3 {[%emt 0:02:47]} Bxg2 {[%emt 0:01:17]} 24. Kxg2 {[%emt 0:01:59]} fxg3 {[%emt 0:02:48]} 25. Rf7+ {[%emt 0:01:46]} Rg7 {[%emt 0:01:05]} 26. Rxg7+ {[%emt 0:00:51]} Bxg7 {[%emt 0:00:31]} 27. Qxg3 {[%emt 0:00:12]} Ng6 {[%emt 0:00:12]} 28. Nf3 {[%emt 0:03:28]} Bh6 {[%emt 0:00:38]} 29. Kf1 {[%emt 0:02:34]} Qf6 {[%emt 0:00:52]} 30. Rf2 {[%emt 0:02:33]} Nf4 {[%emt 0:01:14]} 31. Nh4 {[%emt 0:02:41]} Rg8 {[%emt 0:00:44]} 32. Qh2 {[%emt 0:00:19]} Qg5 {[%emt 0:00:40]} 33. Nf5 {[%emt 0:01:57]} Rg6 {[%emt 0:00:26]} 34. Rf3 {[%emt 0:05:45]} Qf6 {[%emt 0:01:26]} 35. Ne2 {[%emt 0:02:26]} Rg2 {[%emt 0:00:45]} 36. Qxh6+ {[%emt 0:08:03]} Qxh6 {[%emt 0:00:05]} 37. Nxh6 {[%emt 0:00:05]} Rxe2 {[%emt 0:00:19]} 38. Rxf4 {[%emt 0:01:02]} exf4 {[%emt 0:00:43]} 39. Kxe2 {[%emt 0:00:01]} Kxh6 {[%emt 0:00:02]} 40. Kf3 {[%emt 0:00:25]} Kg5 {[%emt 0:00:03]} 41. b4 {[%emt 0:32:32]} a6 {[%emt 0:02:49]} 42. a4 {[%emt 0:00:00]} b6 {[%emt 0:00:56]} 43. a5 {[%emt 0:00:00]} Kg6 {[%emt 0:01:22]} 44. Kxf4 {[%emt 0:00:00]} Kf6 {[%emt 0:00:03]} 45. Ke3 {[%emt 0:00:00]} Kg5 {[%emt 0:05:52]} 46. e5 {[%emt 0:00:00]} bxa5 {[%emt 0:01:22]} 47. e6 {[%emt 0:00:00]} Kf6 {[%emt 0:00:04]} 48. bxa5 {[%emt 0:00:00]} Ke7 {[%emt 0:01:30]} 49. Ke4 {[%emt 0:00:00]} Kf6 {[%emt 0:00:39]} 50. Kf4 {[%emt 0:00:00]} Ke7 {[%emt 0:00:07]} 51. Kf5 {[%emt 0:00:00]} Ke8 {[%emt 0:00:06]} 52. Kf6 {[%emt 0:00:00]} Kf8 {[%emt 0:00:21]} 53. e7+ {[%emt 0:00:00]} Ke8 {[%emt 0:00:04]} 54. Ke6 {[%emt 0:00:00]} c5 {[%emt 0:00:22]} 55. dxc6 {[%emt 0:00:00]} d5 {[%emt 0:00:07]} 56. c7 {[%emt 0:00:00]} 1-0

[Event "Niedersachsen-ch B 2024"]
[Site "Verden Aller"]
[Date "2024.01.06"]
[Round "5.10"]
[White "Berkenkamp, Matthis"]
[Black "Schumacher, Klaus"]
[Result "1-0"]
[ECO "D02"]
[WhiteElo "1425"]
[BlackElo "1724"]
[Annotator "NA RC"]
[PlyCount "91"]
[EventDate "2024.01.01"]
[EventType "swiss"]
[EventCountry "GER"]
[SourceTitle "playchess.com"]
[Source "ChessBase"]
[SourceQuality "1"]
[TimeControl "40/5400+30:1800+30"]

1. Nf3 {[%emt 0:00:05]} c5 {[%emt 0:00:22]} 2. g3 {[%emt 0:00:09]} d5 {[%emt 0:00:23]} 3. d4 {[%emt 0:00:13]} cxd4 {[%emt 0:00:34]} 4. Bg2 {[%emt 0:00:10]} Nc6 {[%emt 0:00:23]} 5. Nxd4 {[%emt 0:00:05]} e5 {[%emt 0:01:34]} 6. Nxc6 {[%emt 0:00:05]} bxc6 {[%emt 0:00:08]} 7. c4 {[%emt 0:00:17]} Bb4+ {[%emt 0:01:14]} 8. Nc3 {[%emt 0:00:10]} d4 {[%emt 0:01:03]} 9. Qa4 {[%emt 0:00:41]} Rb8 {[%emt 0:01:17]} 10. Bxc6+ {[%emt 0:01:19]} Bd7 {[%emt 0:00:07]} 11. Bxd7+ {[%emt 0:00:07]} Qxd7 {[%emt 0:00:08]} 12. Qxd7+ {[%emt 0:00:11]} Kxd7 {[%emt 0:00:07]} 13. a3 {[%emt 0:00:01]} Ba5 {[%emt 1:29:40]} 14. b4 {[%emt 0:00:19]} dxc3 {[%emt 0:00:00]} 15. bxa5 {[%emt 0:00:15]} Rc8 {[%emt 0:00:00]} 16. Be3 {[%emt 0:00:26]} a6 {[%emt 0:00:00]} 17. O-O-O+ {[%emt 0:02:16]} Ke6 {[%emt 0:00:00]} 18. c5 {[%emt 0:01:57]} Nf6 {[%emt 0:00:00]} 19. Rd6+ {[%emt 0:00:33]} Ke7 {[%emt 0:00:00]} 20. f3 {[%emt 0:10:16]} Nd7 {[%emt 0:00:00]} 21. Rxa6 {[%emt 0:01:35]} Nxc5 {[%emt 0:00:00]} 22. Ra7+ {[%emt 0:00:21]} Kf6 {[%emt 0:00:00]} 23. Rd1 {[%emt 0:01:28]} Rhe8 {[%emt 0:00:00]} 24. Bxc5 {[%emt 0:02:55]} Rxc5 {[%emt 0:00:00]} 25. Rd6+ {[%emt 0:00:05]} Re6 {[%emt 0:00:00]} 26. Rxe6+ {[%emt 0:00:05]} Kxe6 {[%emt 0:00:00]} 27. Kc2 {[%emt 0:00:11]} h5 {[%emt 0:00:00]} 28. a6 {[%emt 0:00:23]} Ra5 {[%emt 0:00:00]} 29. Kxc3 {[%emt 0:00:24]} Rxa3+ {[%emt 0:00:00]} 30. Kd2 {[%emt 0:00:23]} Kf6 {[%emt 0:00:00]} 31. Ra8 {[%emt 0:02:38]} g6 {[%emt 0:00:00]} 32. a7 {[%emt 0:01:15]} Ra1 {[%emt 0:00:00]} 33. Ke3 {[%emt 0:03:50]} Ra4 {[%emt 0:00:00]} 34. h3 {[%emt 0:01:49]} Ra2 {[%emt 0:00:00]} 35. Kd3 {[%emt 0:02:22]} Ra4 {[%emt 0:00:00]} 36. Kc3 {[%emt 0:00:15]} Ra1 {[%emt 0:00:00]} 37. h4 {[%emt 0:00:35]} Ra2 {[%emt 0:00:00]} 38. Kc4 {[%emt 0:00:37]} Ra1 {[%emt 0:00:00]} 39. Kd5 {[%emt 0:00:26]} Ra2 {[%emt 0:00:00]} 40. Kd6 {[%emt 0:00:42]} Ra1 {[%emt 0:00:00]} 41. Kd7 {[%emt 0:30:42]} Ra2 {[%emt 0:00:00]} 42. Ke8 {[%emt 0:00:06]} Ra1 {[%emt 0:00:00]} 43. Kf8 {[%emt 0:00:15]} Ra2 {[%emt 0:00:00]} 44. Rb8 {[%emt 0:00:22]} Rxa7 {[%emt 0:45:30]} 45. Rb6+ {[%emt 1:09:41]} Kf5 46. e4# 1-0

[Event "Niedersachsen-ch B 2024"]
[Site "Verden Aller"]
[Date "2024.01.06"]
[Round "5.11"]
[White "Rademacher, Bengt"]
[Black "Sanchez Tapia, Luis G."]
[Result "1-0"]
[ECO "B48"]
[WhiteElo "1702"]
[BlackElo "1576"]
[Annotator "NA RC"]
[PlyCount "55"]
[EventDate "2024.01.01"]
[EventType "swiss"]
[EventCountry "GER"]
[SourceTitle "playchess.com"]
[Source "ChessBase"]
[SourceQuality "1"]
[TimeControl "40/5400+30:1800+30"]

1. e4 {[%emt 0:00:00]} c5 {[%emt 0:00:00]} 2. Nf3 {[%emt 0:00:00]} e6 {[%emt 0:00:00]} 3. d4 {[%emt 0:00:00]} cxd4 {[%emt 0:00:00]} 4. Nxd4 {[%emt 0:00:00]} Nc6 {[%emt 0:00:00]} 5. Nc3 {[%emt 0:00:00]} Qc7 {[%emt 0:00:00]} 6. Be3 {[%emt 0:00:00]} a6 {[%emt 0:00:00]} 7. Qd2 {[%emt 0:00:00]} Nf6 {[%emt 0:00:00]} 8. f3 {[%emt 0:00:00]} Be7 {[%emt 0:00:00]} 9. O-O-O {[%emt 0:05:51]} h5 {[%emt 0:04:20]} 10. Kb1 {[%emt 0:13:42]} h4 {[%emt 0:03:00]} 11. Rg1 {[%emt 0:07:29]} b5 {[%emt 0:05:36]} 12. g4 {[%emt 0:07:44]} hxg3 {[%emt 0:03:11]} 13. hxg3 {[%emt 0:01:57]} b4 {[%emt 0:02:29]} 14. Na4 {[%emt 0:01:50]} a5 {[%emt 1:18:54]} 15. Nb5 {[%emt 0:05:08]} Qb8 {[%emt 0:00:00]} 16. Bb6 {[%emt 0:08:30]} d5 {[%emt 0:00:00]} 17. Nc7+ {[%emt 0:03:35]} Kf8 {[%emt 0:00:00]} 18. Nxa8 {[%emt 0:06:03]} Qxa8 {[%emt 0:00:00]} 19. Bb5 {[%emt 0:00:43]} dxe4 {[%emt 0:00:00]} 20. fxe4 {[%emt 0:03:50]} Nxe4 {[%emt 0:00:00]} 21. Qf4 {[%emt 0:02:44]} Nf6 {[%emt 0:00:00]} 22. Qc7 {[%emt 0:02:44]} Bb7 {[%emt 0:00:00]} 23. Nc5 {[%emt 0:10:06]} Nd5 {[%emt 0:00:00]} 24. Rxd5 {[%emt 0:04:18]} exd5 {[%emt 0:00:00]} 25. Nxb7 {[%emt 0:01:03]} Na7 {[%emt 0:00:00]} 26. Bxa7 {[%emt 0:00:16]} Qxa7 {[%emt 0:00:00]} 27. Qc8+ {[%emt 0:00:13]} Bd8 {[%emt 0:00:00]} 28. Qxd8# {[%emt 0:00:05]} 1-0

[Event "Niedersachsen-ch B 2024"]
[Site "Verden Aller"]
[Date "2024.01.06"]
[Round "5.13"]
[White "Bangert, Jonas"]
[Black "Grabowski, Petra"]
[Result "1/2-1/2"]
[ECO "D37"]
[WhiteElo "1527"]
[BlackElo "1600"]
[Annotator "NA RC"]
[PlyCount "76"]
[EventDate "2024.01.01"]
[EventType "swiss"]
[EventCountry "GER"]
[SourceTitle "playchess.com"]
[Source "ChessBase"]
[SourceQuality "1"]
[TimeControl "40/5400+30:1800+30"]

1. d4 {[%emt 0:00:03]} Nf6 {[%emt 0:00:06]} 2. Nf3 {[%emt 0:00:03]} e6 {[%emt 0:00:10]} 3. c4 {[%emt 0:01:47]} d5 {[%emt 0:00:23]} 4. Nc3 {[%emt 0:00:45]} Be7 {[%emt 0:00:56]} 5. Bf4 {[%emt 0:03:12]} a6 {[%emt 0:01:39]} 6. cxd5 {[%emt 0:03:58]} exd5 {[%emt 0:00:20]} 7. e3 {[%emt 0:01:15]} Bf5 {[%emt 0:05:17]} 8. Bd3 {[%emt 0:08:55]} Bxd3 {[%emt 0:00:23]} 9. Qxd3 {[%emt 0:00:02]} O-O {[%emt 0:09:28]} 10. O-O {[%emt 0:03:31]} Re8 {[%emt 0:03:09]} 11. Rfc1 {[%emt 0:09:22]} Bd6 {[%emt 0:04:42]} 12. Bxd6 {[%emt 0:01:46]} Qxd6 {[%emt 0:00:15]} 13. Na4 {[%emt 0:09:31]} Ne4 {[%emt 0:09:34]} 14. Qc2 {[%emt 0:10:38]} Re7 {[%emt 0:26:23]} 15. Qb3 {[%emt 0:14:47]} b5 {[%emt 0:08:14]} 16. Nc5 {[%emt 0:13:57]} Nd7 {[%emt 0:01:22]} 17. Nxd7 {[%emt 0:01:06]} Rxd7 {[%emt 0:02:53]} 18. Ne5 {[%emt 0:02:15]} Rdd8 {[%emt 0:01:46]} 19. Rc6 {[%emt 0:01:16]} Qe7 {[%emt 0:02:30]} 20. Qc2 {[%emt 0:02:36]} Ra7 {[%emt 0:07:56]} 21. Rc1 {[%emt 0:00:34]} f6 {[%emt 0:03:40]} 22. Nd3 {[%emt 0:01:13]} Rc8 {[%emt 0:01:04]} 23. Qb3 {[%emt 0:06:17]} Qd7 {[%emt 0:02:51]} 24. Nf4 {[%emt 0:01:32]} Rd8 {[%emt 0:01:01]} 25. Ne6 {[%emt 0:00:36]} Rc8 {[%emt 0:00:30]} 26. Nf4 {[%emt 0:01:32]} Rd8 {[%emt 0:00:28]} 27. Qc2 {[%emt 0:00:21]} Rc8 {[%emt 0:01:04]} 28. f3 {[%emt 0:00:43]} Nd6 {[%emt 0:02:16]} 29. Qc5 {[%emt 0:00:09]} Nc4 {[%emt 0:00:02]} 30. Nxd5 {[%emt 0:00:52]} Rd8 {[%emt 0:00:29]} 31. Rxc7 {[%emt 0:00:47]} Rxc7 {[%emt 0:00:55]} 32. Nxc7 {[%emt 0:00:02]} Nxe3 {[%emt 0:01:41]} 33. Nxa6 {[%emt 0:00:25]} Qxd4 {[%emt 0:00:41]} 34. Nb4 {[%emt 0:01:02]} Nc4+ {[%emt 0:01:36]} 35. Qxd4 {[%emt 0:00:06]} Rxd4 {[%emt 0:00:01]} 36. Nc6 {[%emt 0:00:55]} Rd6 {[%emt 0:00:22]} 37. Ne7+ {[%emt 0:00:32]} Kf7 {[%emt 0:00:12]} 38. Nf5 {[%emt 0:00:23]} Rd5 {[%emt 0:03:11]} 1/2-1/2

[Event "Niedersachsen-ch B 2024"]
[Site "Verden Aller"]
[Date "2024.01.06"]
[Round "5.14"]
[White "Leppert, Hans-Juergen"]
[Black "Eitel, Luc"]
[Result "1-0"]
[ECO "A35"]
[WhiteElo "1683"]
[BlackElo "1535"]
[Annotator "NA RC"]
[PlyCount "121"]
[EventDate "2024.01.01"]
[EventType "swiss"]
[EventCountry "GER"]
[SourceTitle "playchess.com"]
[Source "ChessBase"]
[SourceQuality "1"]
[TimeControl "40/5400+30:1800+30"]

1. c4 {[%emt 0:00:03]} c5 {[%emt 0:01:26]} 2. Nc3 {[%emt 0:00:14]} Nc6 {[%emt 0:00:35]} 3. Nf3 {[%emt 0:00:15]} g6 {[%emt 0:01:09]} 4. d4 {[%emt 0:00:19]} cxd4 {[%emt 0:00:24]} 5. Nxd4 {[%emt 0:00:16]} Bg7 {[%emt 0:00:40]} 6. e3 {[%emt 0:01:56]} Nf6 {[%emt 0:00:35]} 7. Be2 {[%emt 0:00:49]} O-O {[%emt 0:00:32]} 8. O-O {[%emt 0:00:38]} d6 {[%emt 0:01:49]} 9. b3 {[%emt 0:02:33]} Nd7 {[%emt 0:02:26]} 10. Bb2 {[%emt 0:00:37]} Nc5 {[%emt 0:00:21]} 11. Qd2 {[%emt 0:01:38]} Ne6 {[%emt 0:00:56]} 12. Nxc6 {[%emt 0:01:49]} bxc6 {[%emt 0:00:30]} 13. Rad1 {[%emt 0:01:13]} Bb7 {[%emt 0:00:37]} 14. f4 {[%emt 0:12:59]} Qb6 {[%emt 0:01:50]} 15. Na4 {[%emt 0:01:05]} Qc7 {[%emt 0:00:46]} 16. Bxg7 {[%emt 0:00:22]} Nxg7 {[%emt 0:00:59]} 17. Bf3 {[%emt 0:04:14]} Rad8 {[%emt 0:01:40]} 18. Qc3 {[%emt 0:02:29]} Ne6 {[%emt 0:03:24]} 19. g3 {[%emt 0:03:31]} c5 {[%emt 0:03:21]} 20. Bd5 {[%emt 0:03:46]} Ng7 {[%emt 0:02:17]} 21. Qd2 {[%emt 0:05:53]} Ne8 {[%emt 0:16:14]} 22. Nc3 {[%emt 0:00:59]} Nf6 {[%emt 0:00:21]} 23. Bxb7 {[%emt 0:01:12]} Qxb7 {[%emt 0:00:17]} 24. Qd3 {[%emt 0:01:16]} Rd7 {[%emt 0:02:28]} 25. e4 {[%emt 0:02:37]} Rfd8 {[%emt 0:00:24]} 26. Rfe1 {[%emt 0:00:46]} e6 {[%emt 0:00:34]} 27. Qe3 {[%emt 0:06:11]} Ng4 {[%emt 0:02:16]} 28. Qf3 {[%emt 0:00:34]} Nf6 {[%emt 0:00:55]} 29. h3 {[%emt 0:00:13]} d5 {[%emt 0:00:46]} 30. exd5 {[%emt 0:03:21]} exd5 {[%emt 0:00:46]} 31. cxd5 {[%emt 0:00:16]} Qb6 {[%emt 0:18:37]} 32. Kg2 {[%emt 0:03:12]} Qa6 {[%emt 0:07:03]} 33. Rd2 {[%emt 0:14:59]} c4 {[%emt 0:00:27]} 34. b4 {[%emt 0:00:18]} Qa3 {[%emt 0:00:17]} 35. b5 {[%emt 0:01:01]} Nxd5 {[%emt 0:04:05]} 36. Rxd5 {[%emt 0:02:08]} Rxd5 {[%emt 0:00:16]} 37. Nxd5 {[%emt 0:00:49]} Qxf3+ {[%emt 0:00:14]} 38. Kxf3 {[%emt 0:00:08]} Rxd5 {[%emt 0:00:03]} 39. a4 {[%emt 0:01:02]} Rd3+ {[%emt 0:00:35]} 40. Re3 {[%emt 0:00:19]} Rb3 {[%emt 0:00:38]} 41. Ke2 {[%emt 0:30:40]} Rb4 {[%emt 0:30:19]} 42. Ra3 {[%emt 0:01:07]} c3 {[%emt 0:01:10]} 43. Kd3 {[%emt 0:00:51]} Kf8 {[%emt 0:00:40]} 44. Kxc3 {[%emt 0:00:11]} Re4 {[%emt 0:00:07]} 45. Kd2 {[%emt 0:00:27]} Kg7 {[%emt 0:05:41]} 46. Kd3 {[%emt 0:00:31]} Rb4 {[%emt 0:00:13]} 47. Kc3 {[%emt 0:00:29]} Re4 {[%emt 0:00:11]} 48. Kb3 {[%emt 0:00:26]} Kf6 {[%emt 0:00:21]} 49. a5 {[%emt 0:00:03]} Re6 {[%emt 0:02:56]} 50. Kb4 {[%emt 0:00:31]} Ke7 {[%emt 0:00:18]} 51. Rd3 {[%emt 0:00:31]} Rd6 {[%emt 0:02:38]} 52. Rxd6 {[%emt 0:00:23]} Kxd6 {[%emt 0:00:05]} 53. Kc4 {[%emt 0:00:15]} h6 {[%emt 0:01:41]} 54. Kd4 {[%emt 0:00:38]} f6 {[%emt 0:00:27]} 55. g4 {[%emt 0:00:48]} h5 {[%emt 0:01:46]} 56. gxh5 {[%emt 0:00:11]} gxh5 {[%emt 0:00:05]} 57. h4 {[%emt 0:00:05]} Ke6 {[%emt 0:00:17]} 58. b6 {[%emt 0:00:16]} axb6 {[%emt 0:00:16]} 59. a6 {[%emt 0:00:07]} Kf5 {[%emt 0:00:23]} 60. a7 {[%emt 0:00:10]} Kxf4 {[%emt 0:00:04]} 61. a8=Q {[%emt 0:00:06]} 1-0

[Event "Niedersachsen-ch B 2024"]
[Site "Verden Aller"]
[Date "2024.01.06"]
[Round "5.16"]
[White "Schlaetker, Christine"]
[Black "Fels, Mattis"]
[Result "0-1"]
[ECO "B24"]
[WhiteElo "1745"]
[BlackElo "1572"]
[Annotator "NA RC"]
[PlyCount "116"]
[EventDate "2024.01.01"]
[EventType "swiss"]
[EventCountry "GER"]
[SourceTitle "playchess.com"]
[Source "ChessBase"]
[SourceQuality "1"]
[TimeControl "40/5400+30:1800+30"]

1. e4 {[%emt 0:00:03]} c5 {[%emt 0:01:57]} 2. Nc3 {[%emt 0:00:13]} e6 {[%emt 0:00:05]} 3. g3 {[%emt 0:00:11]} Nc6 {[%emt 0:00:11]} 4. Bg2 {[%emt 0:00:07]} Qc7 {[%emt 0:00:42]} 5. d3 {[%emt 0:01:14]} a6 {[%emt 0:00:21]} 6. Be3 {[%emt 0:01:08]} b5 {[%emt 0:00:13]} 7. Qd2 {[%emt 0:00:52]} Bb7 {[%emt 0:00:22]} 8. f4 {[%emt 0:01:03]} Nf6 {[%emt 0:02:17]} 9. h3 {[%emt 0:01:38]} Be7 {[%emt 0:04:50]} 10. Nf3 {[%emt 0:04:09]} O-O {[%emt 0:00:35]} 11. O-O {[%emt 0:00:39]} d5 {[%emt 0:00:41]} 12. exd5 {[%emt 0:15:18]} exd5 {[%emt 0:00:51]} 13. Bf2 {[%emt 0:01:28]} Rfe8 {[%emt 0:10:07]} 14. Rfe1 {[%emt 0:02:35]} Bf8 {[%emt 0:02:03]} 15. Nh4 {[%emt 0:10:19]} Qd7 {[%emt 0:04:06]} 16. g4 {[%emt 0:02:48]} Ne7 {[%emt 0:19:22]} 17. Bxc5 {[%emt 0:11:03]} d4 {[%emt 0:01:53]} 18. Ne4 {[%emt 0:08:18]} Nxe4 {[%emt 0:00:40]} 19. dxe4 {[%emt 0:02:16]} Nc6 {[%emt 0:01:10]} 20. Bxf8 {[%emt 0:00:31]} Kxf8 {[%emt 0:00:33]} 21. c3 {[%emt 0:03:28]} Rad8 {[%emt 0:00:59]} 22. Rad1 {[%emt 0:00:34]} Re7 {[%emt 0:12:19]} 23. Nf5 {[%emt 0:00:38]} Re6 {[%emt 0:00:59]} 24. cxd4 {[%emt 0:01:38]} g6 {[%emt 0:00:34]} 25. Ng3 {[%emt 0:12:48]} Nxd4 {[%emt 0:08:07]} 26. Qf2 {[%emt 0:01:43]} Rc6 {[%emt 0:07:23]} 27. Ne2 {[%emt 0:03:18]} Nxe2+ {[%emt 0:02:22]} 28. Qxe2 {[%emt 0:00:13]} Qc7 {[%emt 0:00:31]} 29. Rxd8+ {[%emt 0:00:29]} Qxd8 {[%emt 0:00:13]} 30. Rd1 {[%emt 0:03:26]} Qb6+ {[%emt 0:00:41]} 31. Kh2 {[%emt 0:01:15]} Qc7 {[%emt 0:00:55]} 32. Qd2 {[%emt 0:02:50]} Rc2 {[%emt 0:00:42]} 33. Qb4+ {[%emt 0:02:25]} Kg8 {[%emt 0:00:45]} 34. Kg3 {[%emt 0:01:01]} Qb6 {[%emt 0:04:20]} 35. Qd4 {[%emt 0:03:23]} Qxd4 {[%emt 0:00:42]} 36. Rxd4 {[%emt 0:00:00]} Rxb2 {[%emt 0:03:09]} 37. Rd7 {[%emt 0:00:25]} Bc6 {[%emt 0:01:39]} 38. Rc7 {[%emt 0:01:20]} Be8 {[%emt 0:00:21]} 39. Rc8 {[%emt 0:01:24]} Kf8 {[%emt 0:00:17]} 40. e5 {[%emt 0:00:07]} Ke7 {[%emt 0:01:44]} 41. Rc7+ {[%emt 0:02:36]} Kd8 {[%emt 0:02:04]} 42. Ra7 {[%emt 0:00:28]} Rxa2 {[%emt 0:00:41]} 43. Bb7 {[%emt 0:01:41]} b4 {[%emt 0:05:03]} 44. Rxa6 {[%emt 0:02:25]} Rxa6 {[%emt 0:01:04]} 45. Bxa6 {[%emt 0:00:01]} b3 {[%emt 0:00:17]} 46. Bd3 {[%emt 0:00:25]} Kc7 {[%emt 0:01:13]} 47. Kf2 {[%emt 0:00:28]} Kb6 {[%emt 0:31:57]} 48. Ke3 {[%emt 0:00:13]} Kc5 {[%emt 0:00:00]} 49. Kd2 {[%emt 0:02:26]} Kb4 {[%emt 0:00:00]} 50. f5 {[%emt 0:04:12]} Bd7 {[%emt 0:00:00]} 51. h4 {[%emt 0:01:11]} Ka3 {[%emt 0:00:00]} 52. h5 {[%emt 0:00:48]} gxh5 {[%emt 0:00:00]} 53. gxh5 {[%emt 0:00:07]} h6 {[%emt 0:00:00]} 54. f6 {[%emt 0:01:00]} Be6 {[%emt 0:00:00]} 55. Kc1 {[%emt 0:00:56]} b2+ {[%emt 0:00:00]} 56. Kd2 {[%emt 0:00:23]} Ka2 {[%emt 0:00:00]} 57. Ke3 {[%emt 0:00:39]} b1=Q 58. Bxb1+ {[%emt 0:00:00]} Kxb1 {[%emt 0:00:00]} 0-1